fUSD/lending_fUSD_20250407
["ID","MTS","AMOUNT","RATE_DAILY","PERIOD"]
[357409488,1744051839323,-409.045,0.00025283,2]
[357409537,1744051840270,-5289.50448803,0.00025283,2]
[357409539,1744051840282,-2774.36689787,0.00025283,2]
[357409549,1744051840376,-3346.94339602,0.00025283,2]
[357409552,1744051840388,-641.01223463,0.00025283,2]
[357409554,1744051840400,-9251.40877381,0.00025283,2]
[357409798,1744051843058,-886.70908518,0.00025283,2]
[357409799,1744051843217,-3129.00206691,0.00025283,2]
[357409845,1744051844034,-40.6483945,0.00025283,2]
[357409869,1744051844260,2000.0,0.00042858,120]
[357409976,1744051846656,-1572.40255407,0.00025283,2]
[357409978,1744051846667,-15219.92338003,0.00025283,2]
[357409992,1744051872831,1000.0,0.00042858,60]
[357409993,1744051885643,1000.0,0.00042858,60]
[357409995,1744051892707,-642.49574489,0.00035,35]
[357409996,1744051892738,-200.0,0.0003732,120]
[357409997,1744051892766,-472.45591765,0.0004,30]
[357409998,1744051892795,-236.73,0.00040149,120]
[357409999,1744051892823,-247.18,0.00040173,120]
[357410000,1744051892851,-158.53,0.00040499,120]
[357410001,1744051892879,-500.0,0.00041096,31]
[357410002,1744051892909,-207.64852805,0.00041096,31]
[357410003,1744051892937,-500.0,0.00041096,31]
[357410004,1744051892964,-500.0,0.00041096,31]
[357410005,1744051892992,-500.0,0.00041096,31]
[357410006,1744051893022,-500.0,0.00041096,31]
[357410007,1744051893050,-317.84656545,0.00041096,31]
[357410008,1744051893080,-3749.96,0.00042,120]
[357410009,1744051893108,-2501.53,0.00042,120]
[357410010,1744051893136,-4753.12,0.00042,120]
[357410011,1744051893164,-2464.13,0.00042,120]
[357410012,1744051893190,-777.0,0.00042,120]
[357410013,1744051893222,-530.55310216,0.000427,100]
[357410014,1744051893250,-7631.0,0.00042795,120]
[357410015,1744051893279,-153.040804,0.00042798,120]
[357410016,1744051893308,-14818.44956615,0.00042847,30]
[357410017,1744051893335,-4056.20925907,0.0004285,30]
[357410018,1744051893366,-161.040718,0.00043198,120]
[357410019,1744051893397,-669.43472539,0.000433,120]
[357410020,1744051893426,-161.040718,0.00043498,120]
[357410021,1744051893457,-162.040718,0.00043798,120]
[357410022,1744051893488,-292.0,0.00043805,120]
[357410023,1744051893520,-292.0,0.00043815,120]
[357410024,1744051893548,-292.0,0.00043825,120]
[357410025,1744051893577,-30000.0,0.00043827,30]
[357410026,1744051893605,-3500.0,0.0004383,120]
[357410027,1744051893632,-300.0,0.00043834,30]
[357410028,1744051893668,-916.409898,0.00043835,30]
[357410029,1744051893695,-167.546997,0.00043835,30]
[357410030,1744051893722,-163.151828,0.00043835,30]
[357410031,1744051893751,-158.644913,0.00043835,30]
[357410032,1744051893784,-9111.53792,0.00043835,30]
[357410033,1744051893819,-205.563459,0.00043835,30]
[357410034,1744051894117,-500.0,0.00043835,30]
[357410035,1744051894146,-500.0,0.00043835,30]
[357410036,1744051894173,-508.35653299,0.00043835,30]
[357410037,1744051894199,-500.0,0.00043835,30]
[357410038,1744051894225,-500.0,0.00043835,30]
[357410039,1744051894252,-502.05865977,0.00043835,30]
[357410040,1744051894278,-500.0,0.00043835,30]
[357410041,1744051894305,-504.15614968,0.00043835,30]
[357410042,1744051894332,-500.0,0.00043835,30]
[357410043,1744051894358,-500.0,0.00043835,30]
[357410044,1744051894386,-275.79465036,0.00043835,30]
[357410045,1744051894416,-500.0,0.00043835,30]
[357410046,1744051894441,-500.0,0.00043835,30]
[357410047,1744051894467,-500.0,0.00043835,30]
[357410048,1744051894495,-500.0,0.00043835,30]
[357410049,1744051894520,-500.0,0.00043835,30]
[357410050,1744051894547,-500.0,0.00043835,30]
[357410051,1744051894575,-502.1845104,0.00043835,30]
[357410052,1744051894601,-500.0,0.00043835,30]
[357410053,1744051894626,-500.0,0.00043835,30]
[357410054,1744051894655,-510.24306216,0.00043835,30]
[357410055,1744051894681,-500.0,0.00043835,30]
[357410056,1744051894706,-500.0,0.00043835,30]
[357410057,1744051894731,-500.0,0.00043835,30]
[357410058,1744051894757,-500.0,0.00043835,30]
[357410059,1744051894783,-266.65562612,0.00043835,30]
[357410060,1744051894814,-500.0,0.00043835,30]
[357410061,1744051894840,-500.51914507,0.00043835,30]
[357410062,1744051894865,-501.02262948,0.00043835,30]
[357410063,1744051894896,-500.3854986,0.00043835,30]
[357410064,1744051894921,-538.50386764,0.00043835,30]
[357410065,1744051894947,-455.2137787,0.00043835,30]
[357410066,1744051894971,-500.0,0.00043835,30]
[357410067,1744051894997,-500.0,0.00043835,30]
[357410068,1744051895022,-500.0,0.00043835,30]
[357410069,1744051895047,-500.0,0.00043835,30]
[357410070,1744051895072,-294.25494422,0.00043835,30]
[357410071,1744051895097,-500.0,0.00043835,30]
[357410072,1744051895123,-500.0,0.00043835,30]
[357410073,1744051895152,-500.0,0.00043835,30]
[357410074,1744051895177,-500.0,0.00043835,30]
[357410075,1744051895203,-500.0,0.00043835,30]
[357410076,1744051895228,-500.0,0.00043835,30]
[357410077,1744051895254,-500.0,0.00043835,30]
[357410078,1744051895279,-500.0,0.00043835,30]
[357410079,1744051895304,-500.0,0.00043835,30]
[357410080,1744051895329,-500.0,0.00043835,30]
[357410081,1744051895354,-500.0,0.00043835,30]
[357410082,1744051895378,-500.0,0.00043835,30]
[357410083,1744051895406,-500.0,0.00043835,30]
[357410084,1744051895431,-500.0,0.00043835,30]
[357410085,1744051895456,-500.0,0.00043835,30]
[357410086,1744051895481,-380.3525523,0.00043835,30]
[357410087,1744051895506,-547.11,0.00043835,30]
[357410088,1744051895530,-500.0,0.00043835,30]
[357410089,1744051895556,-390.00368739,0.00043835,30]
[357410090,1744051895581,-500.0,0.00043835,30]
[357410091,1744051895607,-500.0,0.00043835,30]
[357410092,1744051895632,-500.0,0.00043835,30]
[357410093,1744051895659,-500.0,0.00043835,30]
[357410094,1744051895684,-500.0,0.00043835,30]
[357410095,1744051895710,-500.0,0.00043835,30]
[357410096,1744051895735,-960.42,0.00043835,30]
[357410097,1744051895761,-511.28343589,0.00043835,30]
[357410098,1744051895786,-500.0,0.00043835,30]
[357410099,1744051895812,-302.86115633,0.00043835,30]
[357410100,1744051895839,-463.75588613,0.00043835,30]
[357410101,1744051895867,-500.0,0.00043835,30]
[357410102,1744051895894,-500.0,0.00043835,30]
[357410103,1744051895920,-500.0,0.00043835,30]
[357410104,1744051895946,-500.0,0.00043835,30]
[357410105,1744051895972,-500.0,0.00043835,30]
[357410106,1744051895997,-247.48015652,0.00043835,30]
[357410107,1744051896023,-500.0,0.00043835,30]
[357410108,1744051896050,-500.0,0.00043835,30]
[357410109,1744051896076,-500.0,0.00043835,30]
[357410110,1744051896102,-500.0,0.00043835,30]
[357410111,1744051896128,-489.3251752,0.00043835,30]
[357410112,1744051896156,-822.99,0.00043835,30]
[357410113,1744051896183,-500.0,0.00043835,30]
[357410114,1744051896210,-500.0,0.00043835,30]
[357410115,1744051896235,-500.0,0.00043835,30]
[357410116,1744051896261,-500.0,0.00043835,30]
[357410117,1744051896288,-500.0,0.00043835,30]
[357410118,1744051896315,-500.0,0.00043835,30]
[357410119,1744051896342,-500.0,0.00043835,30]
[357410120,1744051896368,-500.0,0.00043835,30]
[357410121,1744051896396,-500.0,0.00043835,30]
[357410122,1744051896422,-500.0,0.00043835,30]
[357410123,1744051896449,-500.0,0.00043835,30]
[357410124,1744051896475,-500.0,0.00043835,30]
[357410125,1744051896501,-253.98093214,0.00043835,30]
[357410126,1744051896528,-500.0,0.00043835,30]
[357410127,1744051896561,-500.0,0.00043835,30]
[357410128,1744051896595,-531.633271,0.00043835,30]
[357410129,1744051896622,-500.0,0.00043835,30]
[357410130,1744051896652,-1310.09,0.00043835,30]
[357410131,1744051896680,-725.3,0.00043835,30]
[357410132,1744051896708,-500.0,0.00043835,30]
[357410133,1744051896735,-500.0,0.00043835,30]
[357410134,1744051896762,-473.64205825,0.00043835,30]
[357410135,1744051896789,-500.0,0.00043835,30]
[357410136,1744051896818,-500.0,0.00043835,30]
[357410137,1744051896844,-500.0,0.00043835,30]
[357410138,1744051896872,-500.0,0.00043835,30]
[357410139,1744051897120,-500.0,0.00043835,30]
[357410140,1744051897148,-500.0,0.00043835,30]
[357410141,1744051897175,-500.0,0.00043835,30]
[357410142,1744051897202,-500.0,0.00043835,30]
[357410143,1744051897228,-500.0,0.00043835,30]
[357410144,1744051897255,-500.0,0.00043835,30]
[357410145,1744051897281,-500.0,0.00043835,30]
[357410146,1744051897307,-500.0,0.00043835,30]
[357410147,1744051897334,-500.0,0.00043835,30]
[357410148,1744051897360,-500.0,0.00043835,30]
[357410149,1744051897387,-500.0,0.00043835,30]
[357410150,1744051897416,-563.24,0.00043835,30]
[357410151,1744051897442,-500.0,0.00043835,30]
[357410152,1744051897469,-500.0,0.00043835,30]
[357410153,1744051897494,-623.31,0.00043835,30]
[357410154,1744051897520,-500.0,0.00043835,30]
[357410155,1744051897545,-500.0,0.00043835,30]
[357410156,1744051897572,-500.0,0.00043835,30]
[357410157,1744051897597,-500.0,0.00043835,30]
[357410158,1744051897623,-500.0,0.00043835,30]
[357410159,1744051897649,-500.0,0.00043835,30]
[357410160,1744051897676,-500.0,0.00043835,30]
[357410161,1744051897703,-520.03,0.00043835,30]
[357410162,1744051897730,-500.0,0.00043835,30]
[357410163,1744051897757,-500.0,0.00043835,30]
[357410164,1744051897784,-500.0,0.00043835,30]
[357410165,1744051897813,-500.0,0.00043835,30]
[357410166,1744051897839,-500.0,0.00043835,30]
[357410167,1744051897865,-500.0,0.00043835,30]
[357410168,1744051897894,-500.0,0.00043835,30]
[357410169,1744051897919,-500.0,0.00043835,30]
[357410170,1744051897945,-500.0,0.00043835,30]
[357410171,1744051897972,-500.0,0.00043835,30]
[357410172,1744051897997,-843.02,0.00043835,30]
[357410173,1744051898023,-500.0,0.00043835,30]
[357410174,1744051898049,-500.0,0.00043835,30]
[357410175,1744051898076,-500.0,0.00043835,30]
[357410176,1744051898102,-500.0,0.00043835,30]
[357410177,1744051898129,-500.0,0.00043835,30]
[357410178,1744051898159,-500.0,0.00043835,30]
[357410179,1744051898188,-500.0,0.00043835,30]
[357410180,1744051898216,-500.0,0.00043835,30]
[357410181,1744051898244,-500.0,0.00043835,30]
[357410182,1744051898271,-749.93,0.00043835,30]
[357410183,1744051898298,-500.0,0.00043835,30]
[357410184,1744051898326,-500.0,0.00043835,30]
[357410185,1744051898356,-500.0,0.00043835,30]
[357410186,1744051898387,-500.0,0.00043835,30]
[357410187,1744051898422,-796.54,0.00043835,30]
[357410188,1744051898450,-500.0,0.00043835,30]
[357410189,1744051898477,-179.50309174,0.00043835,30]
[357410190,1744051898503,-644.71829985,0.00043835,30]
[357410191,1744051898529,-786.13,0.00043835,30]
[357410192,1744051898556,-500.0,0.00043835,30]
[357410193,1744051898584,-500.0,0.00043835,30]
[357410194,1744051898615,-706.82,0.00043835,30]
[357410195,1744051898645,-214.43365566,0.00043835,30]
[357410196,1744051898673,-539.02408818,0.00043835,30]
[357410197,1744051898701,-277.60736405,0.00043835,30]
[357410198,1744051898727,-500.0,0.00043835,30]
[357410199,1744051898753,-500.0,0.00043835,30]
[357410200,1744051898779,-500.0,0.00043835,30]
[357410201,1744051898808,-243.67006171,0.00043835,30]
[357410202,1744051898835,-529.87,0.00043835,30]
[357410203,1744051898860,-500.0,0.00043835,30]
[357410204,1744051898887,-500.0,0.00043835,30]
[357410205,1744051898915,-500.0,0.00043835,30]
[357410206,1744051898941,-500.0,0.00043835,30]
[357410207,1744051898968,-500.0,0.00043835,30]
[357410208,1744051898996,-500.0,0.00043835,30]
[357410209,1744051899022,-500.0,0.00043835,30]
[357410210,1744051899048,-500.0,0.00043835,30]
[357410211,1744051899075,-500.0,0.00043835,30]
[357410212,1744051899101,-499.0,0.00043835,30]
[357410213,1744051899128,-500.0,0.00043835,30]
[357410214,1744051899156,-500.0,0.00043835,30]
[357410215,1744051899182,-500.0,0.00043835,30]
[357410216,1744051899208,-500.0,0.00043835,30]
[357410217,1744051899237,-500.0,0.00043835,30]
[357410218,1744051899263,-530.21571317,0.00043835,30]
[357410219,1744051899289,-836.08,0.00043835,30]
[357410220,1744051899315,-500.0,0.00043835,30]
[357410221,1744051899342,-500.0,0.00043835,30]
[357410222,1744051899368,-500.0,0.00043835,30]
[357410223,1744051899395,-500.0,0.00043835,30]
[357410224,1744051899421,-500.0,0.00043835,30]
[357410225,1744051899448,-397.08188837,0.00043835,30]
[357410226,1744051899473,-179.45190776,0.00043835,30]
[357410227,1744051899500,-1000.0,0.00043835,30]
[357410228,1744051899526,-500.0,0.00043835,30]
[357410229,1744051899553,-500.0,0.00043835,30]
[357410230,1744051899580,-500.0,0.00043835,30]
[357410231,1744051899606,-500.0,0.00043835,30]
[357410232,1744051899633,-500.0,0.00043835,30]
[357410233,1744051899661,-572.38,0.00043835,30]
[357410234,1744051899688,-500.0,0.00043835,30]
[357410235,1744051899715,-573.93,0.00043835,30]
[357410236,1744051899743,-502.95613348,0.00043835,30]
[357410237,1744051899771,-500.0,0.00043835,30]
[357410238,1744051899800,-500.0,0.00043835,30]
[357410239,1744051899827,-680.71,0.00043835,30]
[357410240,1744051899856,-715.14,0.00043835,30]
[357410241,1744051899887,-500.0,0.00043835,30]
[357410242,1744051899922,-690.91,0.00043835,30]
[357410243,1744051899951,-500.0,0.00043835,30]
[357410244,1744051899980,-500.0,0.00043835,30]
[357410245,1744051900230,-994.62,0.00043835,30]
[357410246,1744051900257,-500.0,0.00043835,30]
[357410247,1744051900285,-500.0,0.00043835,30]
[357410248,1744051900314,-589.6,0.00043835,30]
[357410249,1744051900342,-500.0,0.00043835,30]
[357410250,1744051900370,-500.0,0.00043835,30]
[357410251,1744051900401,-500.0,0.00043835,30]
[357410252,1744051900431,-598.3,0.00043835,30]
[357410253,1744051900457,-500.0,0.00043835,30]
[357410254,1744051900485,-500.0,0.00043835,30]
[357410255,1744051900512,-500.0,0.00043835,30]
[357410256,1744051900539,-500.0,0.00043835,30]
[357410257,1744051900567,-2430.07,0.00043835,30]
[357410258,1744051900593,-167.46710531,0.00043835,30]
[357410259,1744051900619,-500.0,0.00043835,30]
[357410260,1744051900648,-534.8,0.00043835,30]
[357410261,1744051900675,-500.0,0.00043835,30]
[357410262,1744051900702,-500.0,0.00043835,30]
[357410263,1744051900730,-480.093682,0.00043835,30]
[357410264,1744051900756,-531.8274778,0.00043835,30]
[357410265,1744051900784,-804.6,0.00043835,30]
[357410266,1744051900813,-500.0,0.00043835,30]
[357410267,1744051900841,-500.0,0.00043835,30]
[357410268,1744051900867,-500.0,0.00043835,30]
[357410269,1744051900895,-500.0,0.00043835,30]
[357410270,1744051900921,-500.0,0.00043835,30]
[357410271,1744051900950,-500.0,0.00043835,30]
[357410272,1744051900977,-644.51,0.00043835,30]
[357410273,1744051901005,-500.0,0.00043835,30]
[357410274,1744051901032,-502.76,0.00043835,30]
[357410275,1744051901059,-500.0,0.00043835,30]
[357410276,1744051901085,-500.0,0.00043835,30]
[357410277,1744051901111,-500.0,0.00043835,30]
[357410278,1744051901138,-500.0,0.00043835,30]
[357410279,1744051901166,-500.0,0.00043835,30]
[357410280,1744051901193,-1019.28,0.00043835,30]
[357410281,1744051901220,-500.0,0.00043835,30]
[357410282,1744051901248,-859.96,0.00043835,30]
[357410283,1744051901276,-500.0,0.00043835,30]
[357410284,1744051901303,-500.0,0.00043835,30]
[357410285,1744051901330,-869.55,0.00043835,30]
[357410286,1744051901357,-500.0,0.00043835,30]
[357410287,1744051901383,-499.99709452,0.00043835,30]
[357410288,1744051901411,-504.51424776,0.00043835,30]
[357410289,1744051901437,-500.0,0.00043835,30]
[357410290,1744051901464,-500.0,0.00043835,30]
[357410291,1744051901491,-502.43040737,0.00043835,30]
[357410292,1744051901516,-700.09,0.00043835,30]
[357410293,1744051901542,-500.0,0.00043835,30]
[357410294,1744051901568,-502.95972806,0.00043835,30]
[357410295,1744051901595,-512.08,0.00043835,30]
[357410296,1744051901621,-645.57,0.00043835,30]
[357410297,1744051901648,-401.93432032,0.00043835,30]
[357410298,1744051901674,-500.0,0.00043835,30]
[357410299,1744051901700,-500.0,0.00043835,30]
[357410300,1744051901726,-500.0,0.00043835,30]
[357410301,1744051901753,-500.0,0.00043835,30]
[357410302,1744051901796,-500.0,0.00043835,30]
[357410303,1744051901845,-500.0,0.00043835,30]
[357410304,1744051901885,-500.0,0.00043835,30]
[357410305,1744051901929,-500.0,0.00043835,30]
[357410306,1744051901972,-500.0,0.00043835,30]
[357410307,1744051902013,-968.13,0.00043835,30]
[357410308,1744051902055,-992.6,0.00043835,30]
[357410309,1744051902096,-500.0,0.00043835,30]
[357410310,1744051902133,-500.0,0.00043835,30]
[357410311,1744051902172,-502.38963506,0.00043835,30]
[357410312,1744051902209,-504.48610428,0.00043835,30]
[357410313,1744051902247,-500.0,0.00043835,30]
[357410314,1744051902294,-500.0,0.00043835,30]
[357410315,1744051902336,-1323.13,0.00043835,30]
[357410316,1744051902380,-500.0,0.00043835,30]
[357410317,1744051902425,-500.0,0.00043835,30]
[357410318,1744051902465,-564.4,0.00043835,30]
[357410319,1744051902503,-500.0,0.00043835,30]
[357410320,1744051902540,-500.0,0.00043835,30]
[357410321,1744051902582,-500.0,0.00043835,30]
[357410322,1744051902620,-500.0,0.00043835,30]
[357410323,1744051902658,-706.64,0.00043835,30]
[357410324,1744051902695,-500.0,0.00043835,30]
[357410325,1744051902733,-500.0,0.00043835,30]
[357410326,1744051902771,-500.0,0.00043835,30]
[357410327,1744051902810,-500.0,0.00043835,30]
[357410328,1744051902846,-500.0,0.00043835,30]
[357410329,1744051902882,-499.87660668,0.00043835,30]
[357410330,1744051902920,-500.0,0.00043835,30]
[357410331,1744051902955,-500.0,0.00043835,30]
[357410332,1744051902991,-784.69,0.00043835,30]
[357410333,1744051903026,-500.0,0.00043835,30]
[357410334,1744051903062,-644.82521262,0.00043835,30]
[357410335,1744051903098,-500.0,0.00043835,30]
[357410336,1744051903133,-500.0,0.00043835,30]
[357410337,1744051903169,-500.0,0.00043835,30]
[357410338,1744051903204,-500.0,0.00043835,30]
[357410339,1744051903241,-500.0,0.00043835,30]
[357410340,1744051903278,-500.0,0.00043835,30]
[357410341,1744051903313,-500.0,0.00043835,30]
[357410342,1744051903350,-500.0,0.00043835,30]
[357410343,1744051903386,-500.0,0.00043835,30]
[357410344,1744051903422,-500.0,0.00043835,30]
[357410345,1744051903460,-500.0,0.00043835,30]
[357410346,1744051903498,-528.96,0.00043835,30]
[357410347,1744051903535,-500.0,0.00043835,30]
[357410348,1744051903575,-516.35,0.00043835,30]
[357410349,1744051903614,-500.0,0.00043835,30]
[357410350,1744051903649,-730.68,0.00043835,30]
[357410351,1744051903689,-500.0,0.00043835,30]
[357410352,1744051903726,-500.0,0.00043835,30]
[357410353,1744051903762,-501.23403454,0.00043835,30]
[357410354,1744051903800,-500.0,0.00043835,30]
[357410355,1744051903828,-500.0,0.00043835,30]
[357410356,1744051903855,-500.0,0.00043835,30]
[357410357,1744051903881,-631.55840801,0.00043835,30]
[357410359,1744051904248,-500.0,0.00043835,30]
[357410360,1744051904314,-605.46,0.00043835,30]
[357410361,1744051904341,-1150.56,0.00043835,30]
[357410362,1744051904367,-500.0,0.00043835,30]
[357410363,1744051904393,-500.0,0.00043835,30]
[357410364,1744051904420,-500.0,0.00043835,30]
[357410365,1744051904446,-500.0,0.00043835,30]
[357410366,1744051904472,-645.16,0.00043835,30]
[357410367,1744051904498,-1000.0,0.00043835,120]
[357410368,1744051904523,-500.0,0.00043835,30]
[357410369,1744051904550,-660.97,0.00043835,30]
[357410370,1744051904576,-500.0,0.00043835,30]
[357410371,1744051904602,-500.0,0.00043835,30]
[357410372,1744051904628,-500.0,0.00043835,30]
[357410373,1744051904655,-500.0,0.00043835,30]
[357410374,1744051904682,-500.0,0.00043835,30]
[357410375,1744051904709,-859.28,0.00043835,30]
[357410376,1744051904735,-500.0,0.00043835,30]
[357410377,1744051904763,-500.0,0.00043835,30]
[357410378,1744051904792,-500.0,0.00043835,30]
[357410379,1744051904820,-502.88739648,0.00043835,30]
[357410380,1744051904849,-500.0,0.00043835,30]
[357410381,1744051904876,-500.0,0.00043835,30]
[357410382,1744051904905,-500.0,0.00043835,30]
[357410383,1744051904932,-542.41,0.00043835,30]
[357410384,1744051904958,-500.0,0.00043835,30]
[357410385,1744051904985,-500.0,0.00043835,30]
[357410386,1744051905012,-500.0,0.00043835,30]
[357410387,1744051905037,-500.0,0.00043835,30]
[357410388,1744051905064,-500.0,0.00043835,30]
[357410389,1744051905092,-500.0,0.00043835,30]
[357410390,1744051905121,-500.0,0.00043835,30]
[357410391,1744051905151,-500.0,0.00043835,30]
[357410392,1744051905180,-500.0,0.00043835,30]
[357410393,1744051905209,-536.64,0.00043835,30]
[357410394,1744051905237,-500.0,0.00043835,30]
[357410395,1744051905265,-500.0,0.00043835,30]
[357410396,1744051905292,-507.26,0.00043835,30]
[357410397,1744051905319,-500.0,0.00043835,30]
[357410398,1744051905347,-724.23,0.00043835,30]
[357410399,1744051905375,-502.12257754,0.00043835,30]
[357410400,1744051905404,-670.73,0.00043835,30]
[357410401,1744051905432,-500.0,0.00043835,30]
[357410402,1744051905460,-500.0,0.00043835,30]
[357410403,1744051905487,-500.0,0.00043835,30]
[357410404,1744051905514,-500.0,0.00043835,30]
[357410405,1744051905541,-500.0,0.00043835,30]
[357410406,1744051905567,-500.0,0.00043835,30]
[357410407,1744051905593,-500.0,0.00043835,30]
[357410408,1744051905620,-661.55,0.00043835,30]
[357410409,1744051905647,-180.79259346,0.00043835,30]
[357410410,1744051905676,-500.0,0.00043835,30]
[357410411,1744051905704,-500.0,0.00043835,30]
[357410412,1744051905731,-500.0,0.00043835,30]
[357410413,1744051905758,-500.0,0.00043835,30]
[357410414,1744051905786,-500.0,0.00043835,30]
[357410415,1744051905816,-500.0,0.00043835,30]
[357410416,1744051905843,-500.0,0.00043835,30]
[357410417,1744051905872,-500.0,0.00043835,30]
[357410418,1744051905902,-500.0,0.00043835,30]
[357410419,1744051905928,-500.0,0.00043835,30]
[357410420,1744051905956,-500.0,0.00043835,30]
[357410421,1744051905984,-500.0,0.00043835,30]
[357410422,1744051906012,-500.0,0.00043835,30]
[357410423,1744051906040,-500.0,0.00043835,30]
[357410424,1744051906067,-500.0,0.00043835,30]
[357410425,1744051906095,-500.0,0.00043835,30]
[357410426,1744051906122,-500.0,0.00043835,30]
[357410427,1744051906150,-500.0,0.00043835,30]
[357410428,1744051906178,-500.0,0.00043835,30]
[357410429,1744051906206,-500.0,0.00043835,30]
[357410430,1744051906234,-500.0,0.00043835,30]
[357410431,1744051906261,-500.0,0.00043835,30]
[357410432,1744051906288,-500.0,0.00043835,30]
[357410433,1744051906315,-500.0,0.00043835,30]
[357410434,1744051906356,-500.0,0.00043835,30]
[357410435,1744051906385,-500.0,0.00043835,30]
[357410436,1744051906413,-400.21534035,0.00043835,30]
[357410437,1744051906440,-686.04,0.00043835,30]
[357410438,1744051906467,-500.0,0.00043835,30]
[357410439,1744051906494,-169.92620321,0.00043835,30]
[357410440,1744051906522,-693.21,0.00043835,30]
[357410441,1744051906550,-500.0,0.00043835,30]
[357410442,1744051906577,-500.0,0.00043835,30]
[357410443,1744051906603,-500.0,0.00043835,30]
[357410444,1744051906630,-500.0,0.00043835,30]
[357410445,1744051906657,-500.0,0.00043835,30]
[357410446,1744051906684,-500.0,0.00043835,30]
[357410447,1744051906712,-500.0,0.00043835,30]
[357410448,1744051906740,-500.0,0.00043835,30]
[357410449,1744051906768,-747.07,0.00043835,30]
[357410450,1744051906794,-500.0,0.00043835,30]
[357410451,1744051906825,-500.0,0.00043835,30]
[357410452,1744051906852,-506.90837864,0.00043835,30]
[357410453,1744051906880,-503.54,0.00043835,30]
[357410454,1744051906909,-500.0,0.00043835,30]
[357410455,1744051906936,-500.0,0.00043835,30]
[357410456,1744051906964,-607.35,0.00043835,30]
[357410457,1744051906992,-500.0,0.00043835,30]
[357410458,1744051907019,-500.0,0.00043835,30]
[357410459,1744051907045,-474.58924209,0.00043835,30]
[357410460,1744051907072,-500.0,0.00043835,30]
[357410461,1744051907334,-500.0,0.00043835,30]
[357410462,1744051907364,-559.02,0.00043835,30]
[357410463,1744051907392,-500.0,0.00043835,30]
[357410464,1744051907421,-500.0,0.00043835,30]
[357410465,1744051907448,-500.0,0.00043835,30]
[357410466,1744051907475,-622.13025431,0.00043835,30]
[357410467,1744051907501,-407.84609652,0.00043835,30]
[357410468,1744051907527,-500.0,0.00043835,30]
[357410469,1744051907554,-500.0,0.00043835,30]
[357410470,1744051907581,-500.0,0.00043835,30]
[357410471,1744051907609,-500.0,0.00043835,30]
[357410472,1744051907639,-500.0,0.00043835,30]
[357410473,1744051907667,-500.0,0.00043835,30]
[357410474,1744051907695,-913.14,0.00043835,30]
[357410475,1744051907723,-500.0,0.00043835,30]
[357410476,1744051907749,-573.91762397,0.00043835,30]
[357410477,1744051907778,-500.0,0.00043835,30]
[357410478,1744051907808,-675.02,0.00043835,30]
[357410479,1744051907837,-524.82,0.00043835,30]
[357410480,1744051907865,-547.30191715,0.00043835,30]
[357410481,1744051907893,-500.0,0.00043835,30]